bitfinex/quotes_BTCUSD_20240611
["timestamp","ask_amount","ask_price","bid_price","bid_amount"]
[1718145768336,0.61186677,67340.0,67339.0,0.17173063]
[1718145768555,0.61129078,67340.0,67339.0,0.17173063]
[1718145772287,0.61128947,67340.0,67339.0,0.17173063]
[1718145775217,0.61121332,67340.0,67339.0,0.17173063]
[1718145777768,0.61178931,67340.0,67339.0,0.17173063]
[1718145777969,0.61121332,67340.0,67339.0,0.17173063]
[1718145778410,0.61123088,67340.0,67339.0,0.17173063]
[1718145780937,0.61123088,67340.0,67339.0,0.40633063]
[1718145784772,0.61137037,67340.0,67339.0,0.40633063]
[1718145787440,0.49367993,67340.0,67339.0,0.40633063]
[1718145788050,0.49367993,67340.0,67339.0,0.60633063]
[1718145788376,0.49367993,67340.0,67339.0,0.40633063]
[1718145794238,0.27317993,67340.0,67339.0,0.6814059]
[1718145794470,0.27317993,67340.0,67339.0,0.47849059]
[1718145794934,0.27317993,67340.0,67339.0,0.69082991]
[1718145796498,0.27317993,67340.0,67339.0,0.47849059]
[1718145796899,0.27317993,67340.0,67339.0,0.40633063]
[1718145797491,0.34517993,67340.0,67339.0,0.40633063]
[1718145799185,0.34517993,67340.0,67339.0,0.24873063]
[1718145799408,0.41603024,67340.0,67339.0,0.17173063]
[1718145799624,0.57165592,67340.0,67339.0,0.17173063]
[1718145799845,0.73515592,67340.0,67339.0,0.17173063]
[1718145800057,0.85385866,67340.0,67339.0,0.14300263]
[1718145800279,0.9444699,67340.0,67339.0,0.14300263]
[1718145800560,0.9444699,67340.0,67339.0,0.1269942]
[1718145802677,0.78823137,67340.0,67339.0,0.1269942]
[1718145802905,1.12745129,67340.0,67339.0,0.1269942]
[1718145803138,1.17189442,67340.0,67339.0,0.1099942]
[1718145803370,1.46887957,67340.0,67339.0,0.017]
[1718145803593,1.42445129,67340.0,67339.0,0.007573]
[1718145803811,1.34021487,67340.0,67339.0,0.007573]
[1718145804040,1.42511219,67340.0,67339.0,0.007573]
[1718145804516,1.46952681,67340.0,67339.0,0.007573]
[1718145804734,1.44152681,67340.0,67339.0,0.007573]
[1718145805154,1.46952681,67340.0,67339.0,0.007573]
[1718145805373,1.45576177,67340.0,67339.0,0.007573]
[1718145805588,1.44176177,67340.0,67339.0,0.007573]
[1718145805827,1.45576177,67340.0,67339.0,0.007573]
[1718145806072,1.46976177,67340.0,67339.0,0.007573]
[1718145806547,1.42534715,67340.0,67339.0,0.007573]
[1718145806881,1.46976177,67340.0,67339.0,0.007573]
[1718145807090,1.49201185,67340.0,67339.0,0.007573]
[1718145807265,1.42534715,67340.0,67339.0,0.007573]
[1718145807602,1.46973492,67340.0,67339.0,0.007573]
[1718145807823,1.44173492,67340.0,67339.0,0.007573]
[1718145808044,1.41134715,67340.0,67339.0,0.007573]
[1718145808254,1.42534715,67340.0,67339.0,0.007573]
[1718145808621,1.4417273,67340.0,67339.0,0.007573]
[1718145808821,1.4557273,67340.0,67339.0,0.007573]
[1718145809025,1.4697273,67340.0,67339.0,0.007573]
[1718145809243,1.46972748,67340.0,67339.0,0.007573]
[1718145809370,1.42534715,67340.0,67339.0,0.007573]
[1718145809573,1.41134715,67340.0,67339.0,0.007573]
[1718145809789,1.41034715,67340.0,67339.0,0.007573]
[1718145811179,1.39634715,67340.0,67339.0,0.007573]
[1718145811589,1.41034715,67340.0,67339.0,0.007573]
[1718145812032,1.42434715,67340.0,67339.0,0.007573]
[1718145812430,1.41034715,67340.0,67339.0,0.007573]
[1718145812839,1.42434715,67340.0,67339.0,0.007573]
[1718145815937,1.33933709,67340.0,67339.0,0.007573]
[1718145816119,1.42550039,67340.0,67339.0,0.007573]
[1718145820464,1.35350039,67340.0,67339.0,0.007573]
[1718145820677,1.42550039,67340.0,67339.0,0.007573]
[1718145824561,1.39021193,67340.0,67339.0,0.007573]
[1718145824790,1.42561322,67340.0,67339.0,0.007573]
[1718145826310,1.39021193,67340.0,67339.0,0.007573]
[1718145826515,1.41986652,67340.0,67339.0,0.007573]
[1718145834069,1.42072652,67340.0,67339.0,0.007573]
[1718145836532,1.42071742,67340.0,67339.0,0.007573]
[1718145840084,1.26641742,67340.0,67339.0,0.007573]
[1718145842488,1.31080501,67340.0,67339.0,0.007573]
[1718145843305,1.26641742,67340.0,67339.0,0.007573]
[1718145843513,1.38834843,67340.0,67339.0,0.007573]
[1718145845408,1.41054223,67340.0,67339.0,0.007573]
[1718145846472,1.32176704,67340.0,67339.0,0.007573]
[1718145847088,1.41054223,67340.0,67339.0,0.007573]
[1718145847498,1.18901742,67340.0,67339.0,0.007573]
[1718145848334,1.27779261,67340.0,67339.0,0.007573]
[1718145848544,1.24436671,67340.0,67339.0,0.007573]
[1718145850480,1.2443707,67340.0,67339.0,0.007573]
[1718145852672,1.1723707,67340.0,67339.0,0.007573]
[1718145852877,1.2443707,67340.0,67339.0,0.007573]
[1718145856610,1.20901702,67340.0,67339.0,0.007573]
[1718145858425,1.29790874,67340.0,67339.0,0.007573]
[1718145858629,1.21744964,67340.0,67339.0,0.007573]
[1718145858856,1.13713549,67340.0,67339.0,0.007573]
[1718145859059,1.1537862,67340.0,67339.0,0.007573]
[1718145859497,1.24267792,67340.0,67339.0,0.007573]
[1718145859700,0.85449069,67340.0,67339.0,0.007573]
[1718145859918,0.34250922,67340.0,67339.0,0.247873]
[1718145860076,0.28045044,67340.0,67339.0,0.247873]
[1718145860279,0.28045044,67340.0,67339.0,0.26217254]
[1718145860280,0.24503993,67340.0,67339.0,0.26217254]
[1718145860676,0.23103993,67340.0,67339.0,0.26217254]
[1718145860905,0.21703993,67340.0,67339.0,0.26217254]
[1718145861153,0.36637145,67340.0,67339.0,0.26217254]
[1718145861395,0.34503993,67340.0,67339.0,0.26217254]
[1718145862603,0.34503993,67340.0,67339.0,0.46217254]
[1718145863797,0.34503993,67340.0,67339.0,0.47451186]
[1718145864005,0.34503993,67340.0,67339.0,0.26217254]
[1718145873936,0.34503993,67340.0,67339.0,0.46217254]
[1718145874146,0.34503993,67340.0,67339.0,0.26217254]
[1718145875626,0.27303993,67340.0,67339.0,0.26217254]
[1718145875871,0.34503993,67340.0,67339.0,0.26217254]
[1718145876801,0.27303993,67340.0,67339.0,0.26217254]
[1718145877011,0.34503993,67340.0,67339.0,0.26217254]
[1718145878463,0.34503993,67340.0,67339.0,0.46217254]
[1718145878662,0.34503993,67340.0,67339.0,0.26217254]
[1718145891643,0.27303993,67340.0,67339.0,0.26217254]
[1718145891854,0.34503993,67340.0,67339.0,0.26217254]
[1718145903765,0.38032287,67340.0,67339.0,0.26217254]
[1718145903973,0.34503993,67340.0,67339.0,0.38537741]
[1718145905241,0.34503993,67340.0,67339.0,0.35741673]
[1718145905242,0.27303993,67340.0,67339.0,0.35741673]
[1718145905449,0.27303993,67340.0,67339.0,0.60021673]
[1718145905450,0.12886,67340.0,67339.0,0.60021673]
[1718145906083,0.12886,67340.0,67339.0,0.72407136]
[1718145906290,0.12886,67340.0,67339.0,0.66703]
[1718145906644,0.10086,67340.0,67339.0,0.64474986]
[1718145906938,0.01486,67340.0,67339.0,0.64474986]
[1718145907377,0.00086,67340.0,67339.0,0.60021673]
[1718145908010,0.01186,67340.0,67339.0,0.60021673]
[1718145908838,0.02486,67340.0,67339.0,0.60021673]
[1718145909246,0.01186,67340.0,67339.0,0.60021673]
[1718145909666,0.01986,67340.0,67339.0,0.60021673]
[1718145917993,0.01986,67340.0,67339.0,0.60020853]
[1718145921856,0.01986,67340.0,67339.0,0.67236849]
[1718145927655,0.01986,67340.0,67339.0,0.67236871]
[1718145930311,0.01986,67340.0,67339.0,0.76510724]
[1718145930312,0.01886,67340.0,67339.0,0.76510724]
[1718145930517,0.01886,67340.0,67339.0,1.08033184]
[1718145930939,0.01886,67340.0,67339.0,1.08032285]
[1718145931138,0.01886,67340.0,67339.0,1.01356924]
[1718145931359,0.01886,67340.0,67339.0,1.11059044]
[1718145931576,0.01086,67340.0,67339.0,1.08031766]
[1718145931784,0.01785518,67341.0,67340.0,0.54419932]
[1718145932012,0.01785518,67341.0,67340.0,0.73414448]
[1718145932287,0.00086,67346.0,67345.0,0.21233932]
[1718145932491,0.00086,67346.0,67345.0,0.56743621]
[1718145932878,0.00086,67346.0,67345.0,0.58822422]
[1718145933511,0.01486,67346.0,67345.0,0.68818422]
[1718145933689,0.03228604,67346.0,67345.0,0.68818422]
[1718145933925,0.01486,67346.0,67345.0,0.68818422]
[1718145934054,0.01486,67346.0,67345.0,0.4758449]
[1718145934262,0.01486,67346.0,67345.0,0.68818422]
[1718145934847,0.02686,67346.0,67345.0,0.68818422]
[1718145939363,0.02686,67346.0,67345.0,0.68817176]
[1718145939576,0.02686,67346.0,67345.0,0.78091029]
[1718145940003,0.02686,67346.0,67345.0,0.65772586]
[1718145940210,0.02686,67346.0,67345.0,0.7809102]
[1718145942524,0.02686,67346.0,67345.0,0.78091011]
[1718145944050,0.02686,67346.0,67345.0,0.78090999]
[1718145945145,0.02686,67346.0,67345.0,0.65772586]
[1718145945312,0.02686,67346.0,67345.0,0.78090945]
[1718145953131,0.02686,67346.0,67345.0,0.65772586]
[1718145953336,0.02686,67346.0,67345.0,0.82538387]
[1718145953816,0.02686,67346.0,67345.0,0.82538261]
[1718145954172,0.02686,67346.0,67345.0,0.97387161]
[1718145954984,0.02686,67346.0,67345.0,0.92939196]
[1718145955375,0.02686,67346.0,67345.0,0.97387161]
[1718145955575,0.02686,67346.0,67345.0,0.92939196]
[1718145955964,0.02686,67346.0,67345.0,0.97387161]
[1718145956792,0.02686,67346.0,67345.0,0.97386886]
[1718145957337,0.02686,67346.0,67345.0,0.92939196]
[1718145957538,0.02686,67346.0,67345.0,0.97386886]
[1718145957710,0.02686,67346.0,67345.0,0.92939196]
[1718145957915,0.02686,67346.0,67345.0,0.97386886]
[1718145958318,0.02686,67346.0,67345.0,0.92939196]
[1718145958929,0.02686,67346.0,67345.0,0.97386886]
[1718145961258,0.02686,67346.0,67345.0,0.78090296]
[1718145962284,0.02686,67346.0,67345.0,0.78090861]
[1718145964174,0.17117993,67346.0,67345.0,0.2439317]
[1718145964392,0.75891367,67346.0,67345.0,0.1439717]
[1718145964617,0.72996593,67346.0,67345.0,0.2439317]
[1718145965039,0.72996593,67346.0,67345.0,0.12074801]
[1718145965452,0.72996593,67346.0,67345.0,0.12238831]
[1718145966252,0.72996593,67346.0,67345.0,0.02242831]
[1718145966450,0.72996593,67346.0,67345.0,0.12238831]
[1718145970810,0.5059344,67346.0,67345.0,0.12238831]
[1718145971054,0.5779344,67346.0,67345.0,0.12238831]
[1718145971290,0.5779344,67346.0,67345.0,0.36820039]
[1718145971523,0.5779344,67346.0,67345.0,0.15586107]
[1718145971936,0.5779344,67346.0,67345.0,0.35586107]
[1718145972159,0.5779344,67346.0,67345.0,0.36820039]
[1718145972160,0.3396344,67346.0,67345.0,0.36820039]
[1718145972390,0.2676344,67346.0,67345.0,0.33472763]
[1718145972625,0.2676344,67346.0,67345.0,0.45792211]
[1718145973712,0.2676344,67346.0,67345.0,0.45791528]
[1718145974404,0.2676344,67346.0,67345.0,0.53266563]
[1718145974858,0.12331447,67346.0,67345.0,0.76305463]
[1718145975076,0.02331447,67346.0,67345.0,0.76305463]
[1718145975304,0.02331447,67346.0,67345.0,0.68830428]
[1718145975305,0.12331447,67346.0,67345.0,0.68830428]
[1718145976367,0.02331447,67346.0,67345.0,0.68830428]
[1718145979900,0.02331447,67346.0,67345.0,0.68830196]
[1718145981285,0.02331447,67346.0,67345.0,0.60640196]
[1718145981951,0.10551447,67346.0,67345.0,0.45791296]
[1718145982161,0.20551447,67346.0,67345.0,0.45791296]
[1718145982364,0.12331447,67346.0,67345.0,0.45791296]
[1718145984299,0.02331447,67346.0,67345.0,0.45791296]
[1718145988158,0.02331447,67346.0,67345.0,0.44557364]
[1718145988340,0.02331447,67346.0,67345.0,0.24557364]
[1718145989772,0.02331447,67346.0,67345.0,0.24557744]
[1718145990026,0.02331447,67346.0,67345.0,0.44557744]
[1718145990381,0.4010344,67346.0,67345.0,0.24557744]
[1718145990572,0.5010344,67346.0,67345.0,0.24557744]
[1718145991393,0.5010344,67346.0,67345.0,0.12238831]
[1718145991616,0.5018944,67346.0,67345.0,0.12238831]
[1718146002129,0.5018944,67346.0,67345.0,0.1016003]
[1718146002345,0.5018944,67346.0,67345.0,0.12232147]
[1718146002553,0.5018944,67346.0,67345.0,0.12052147]
[1718146007596,0.57668794,67346.0,67345.0,0.12052147]
[1718146008013,0.57668794,67346.0,67345.0,0.0998003]
[1718146008874,0.57668794,67346.0,67345.0,0.12053425]
[1718146010324,0.42518794,67346.0,67345.0,0.12053425]
[1718146010534,0.3503944,67346.0,67345.0,0.12053425]
[1718146014055,0.2684944,67346.0,67345.0,0.12053425]
[1718146017383,0.2684944,67346.0,67345.0,0.24373176]
[1718146017746,0.2684944,67346.0,67345.0,0.24373135]
[1718146022702,0.2684944,67346.0,67345.0,0.44373135]
[1718146023253,0.2684944,67346.0,67345.0,0.24373135]
[1718146023468,0.2684944,67346.0,67345.0,0.24467735]
[1718146023667,0.2684944,67346.0,67345.0,0.44467735]
[1718146024735,0.2684944,67346.0,67345.0,0.45701667]
[1718146024946,0.31383672,67346.0,67345.0,0.45701667]
[1718146026731,0.31383672,67346.0,67345.0,0.61741667]
[1718146026979,0.31383672,67346.0,67345.0,0.69721667]
[1718146027243,0.3404944,67346.0,67345.0,0.69721667]
[1718146029648,0.3404944,67346.0,67345.0,0.69721497]
[1718146030300,0.3404944,67346.0,67345.0,0.69311497]
[1718146030301,0.12417447,67346.0,67345.0,0.69311497]
[1718146030507,0.02417447,67346.0,67345.0,0.69311497]
[1718146030939,0.02417447,67346.0,67345.0,0.56991957]
[1718146031165,0.02417447,67346.0,67345.0,0.69310759]
[1718146031385,0.02417447,67346.0,67345.0,0.84159659]
[1718146032014,0.02417447,67346.0,67345.0,0.88612127]
[1718146032234,0.02417447,67346.0,67345.0,0.84159659]
[1718146032975,0.02417447,67346.0,67345.0,0.88611681]
[1718146036383,0.02417447,67346.0,67345.0,0.84159233]
[1718146037016,0.02417447,67346.0,67345.0,0.88610438]
[1718146038244,0.02417447,67346.0,67345.0,0.84159233]
[1718146040470,0.02417447,67346.0,67345.0,1.14514291]
[1718146040678,0.02417447,67346.0,67345.0,1.26239894]
[1718146040884,0.02417447,67346.0,67345.0,1.28465497]
[1718146041090,0.02417447,67346.0,67345.0,1.19563086]
[1718146041505,0.01286,67346.0,67345.0,1.49260886]
[1718146041715,0.01286,67346.0,67345.0,1.92605879]
[1718146041921,0.01286,67346.0,67345.0,2.24914625]
[1718146042127,0.01286,67346.0,67345.0,2.04914625]
[1718146042589,0.00086,67346.0,67345.0,2.04914625]
[1718146043004,0.00086,67346.0,67345.0,1.86236846]
[1718146043205,0.00086,67346.0,67345.0,1.85936846]
[1718146043419,0.00086,67346.0,67345.0,1.72602649]
[1718146043649,0.00186,67346.0,67345.0,1.73102649]
[1718146044066,0.00186,67346.0,67345.0,1.72902649]
[1718146044506,0.00186,67346.0,67345.0,1.73202649]
[1718146044929,0.00086,67346.0,67345.0,1.72602649]
[1718146045353,0.00186,67346.0,67345.0,1.60987503]
[1718146045563,0.00186,67346.0,67345.0,1.73302597]
[1718146046646,0.00186,67346.0,67345.0,1.73589406]
[1718146046647,0.00286,67346.0,67345.0,1.73589406]
[1718146046857,0.00186,67346.0,67345.0,1.73289406]
[1718146047508,0.00286,67346.0,67345.0,1.73589406]
[1718146048586,0.00286,67346.0,67345.0,1.73589373]
[1718146050630,0.00186,67346.0,67345.0,1.73589373]
[1718146051340,0.00186,67346.0,67345.0,1.84676499]
[1718146051772,0.00186,67346.0,67345.0,2.04676499]
[1718146051983,0.00186,67346.0,67345.0,1.93589373]
[1718146052440,0.00186,67346.0,67345.0,2.04674013]
[1718146055263,0.00272,67346.0,67345.0,1.73589373]
[1718146056100,0.00272,67346.0,67345.0,1.73589306]
[1718146056641,0.00272,67346.0,67345.0,1.93589306]
[1718146057650,0.00272,67346.0,67345.0,1.73589306]
[1718146060054,0.00272,67346.0,67345.0,1.93589306]
[1718146060644,0.00272,67346.0,67345.0,1.73589306]
[1718146062904,0.00272,67346.0,67345.0,1.82454295]
[1718146063325,0.00272,67346.0,67345.0,1.73589306]
[1718146063680,0.00272,67346.0,67345.0,1.82454892]
[1718146064143,0.00272,67346.0,67345.0,1.73589306]
[1718146064591,0.00272,67346.0,67345.0,1.82455408]
[1718146065267,0.00272,67346.0,67345.0,1.73589306]
[1718146066306,0.00272,67346.0,67345.0,1.93589306]
[1718146068086,0.00272,67346.0,67345.0,1.84670542]
[1718146069204,0.00272,67346.0,67345.0,2.04670542]
[1718146069478,0.00272,67346.0,67345.0,1.84670542]
[1718146070336,0.00272,67346.0,67345.0,1.73589306]
[1718146073450,0.00272,67346.0,67345.0,1.61274312]
[1718146073625,0.00272,67346.0,67345.0,1.73589349]
[1718146075456,0.00272,67346.0,67345.0,1.77327243]
[1718146078055,0.00272,67346.0,67345.0,1.65012206]
[1718146078256,0.00272,67346.0,67345.0,1.77327238]
[1718146080538,0.00272,67346.0,67345.0,0.74544445]
[1718146080746,0.08572,67346.0,67345.0,0.70806551]
[1718146081357,0.08572,67346.0,67345.0,0.58491519]
[1718146081568,0.08572,67346.0,67345.0,0.66242375]
[1718146082008,0.08486,67346.0,67345.0,0.57791519]
[1718146082405,0.08786,67346.0,67345.0,0.59791519]
[1718146082817,0.08886,67346.0,67345.0,0.59791519]
[1718146084336,0.08886,67346.0,67345.0,0.6423459]
[1718146084751,0.08886,67346.0,67345.0,0.59791519]
[1718146085237,0.08886,67346.0,67345.0,0.6423459]
[1718146085868,0.08886,67346.0,67345.0,0.6523459]
[1718146086075,0.08886,67346.0,67345.0,0.64236679]
[1718146086289,0.08886,67346.0,67345.0,0.65236679]
[1718146086511,0.08886,67346.0,67345.0,0.60791519]
[1718146086953,0.08886,67346.0,67345.0,0.59791519]
[1718146087158,0.08886,67346.0,67345.0,0.60791519]
[1718146088951,0.08886,67346.0,67345.0,0.67456126]
[1718146089406,0.08886,67346.0,67345.0,0.60791519]
[1718146091656,0.08886,67346.0,67345.0,0.65235473]
[1718146091864,0.08886,67346.0,67345.0,0.60791519]
[1718146092094,0.00586,67346.0,67345.0,0.60791519]
[1718146092295,0.00586,67346.0,67345.0,1.07451519]
[1718146092490,0.00586,67346.0,67345.0,1.14116126]
[1718146092654,0.00586,67346.0,67345.0,1.07451519]
[1718146092850,0.00586,67346.0,67345.0,1.14534215]
[1718146093680,0.00586,67346.0,67345.0,1.53145015]
[1718146093890,0.00586,67346.0,67345.0,1.64251374]
[1718146096465,0.00586,67346.0,67345.0,1.53145015]
[1718146096879,0.00586,67346.0,67345.0,1.64253637]
[1718146097509,0.00086,67346.0,67345.0,1.64253637]
[1718146097961,0.00286,67346.0,67345.0,1.65053637]
[1718146098402,0.00186,67346.0,67345.0,1.34855837]
[1718146098868,0.00286,67346.0,67345.0,1.35355837]
[1718146099289,0.00186,67346.0,67345.0,1.35055837]
[1718146099529,0.00286,67346.0,67345.0,1.35355837]
[1718146099705,0.00286,67346.0,67345.0,1.24247215]
[1718146100320,0.00286,67346.0,67345.0,1.17047215]
[1718146100522,0.00286,67346.0,67345.0,1.24247215]
[1718146100701,0.00286,67346.0,67345.0,1.55037066]
[1718146100910,0.00286,67346.0,67345.0,1.66146459]
[1718146101508,0.00286,67346.0,67345.0,1.66820397]
[1718146101712,0.00286,67346.0,67345.0,1.36030546]
[1718146101939,0.00286,67346.0,67345.0,1.66820959]
[1718146102161,0.00286,67346.0,67345.0,2.16820959]
[1718146102610,0.00286,67346.0,67345.0,2.16842053]
[1718146103144,0.00286,67346.0,67345.0,2.05732479]
[1718146103797,0.00286,67346.0,67345.0,2.0574078]
[1718146105033,0.00286,67346.0,67345.0,2.05677457]
[1718146105811,0.00286,67346.0,67345.0,2.16788035]
[1718146106781,0.00286,67346.0,67345.0,2.05677457]
[1718146106986,0.00286,67346.0,67345.0,2.1678853]
[1718146108548,0.24516,67346.0,67345.0,1.2354553]
[1718146108751,0.24516,67346.0,67345.0,1.12434457]
[1718146108958,0.24516,67346.0,67345.0,1.04711932]
[1718146109337,0.24516,67346.0,67345.0,1.04714779]
[1718146109629,0.08606,67346.0,67345.0,1.05714779]
[1718146109893,0.08606,67346.0,67345.0,1.08014779]
[1718146110091,0.08606,67346.0,67345.0,1.14681857]
[1718146110368,0.08606,67346.0,67345.0,1.08014454]
[1718146110570,0.08606,67346.0,67345.0,1.14681532]
[1718146110796,0.08606,67346.0,67345.0,1.14681856]
[1718146110990,0.08606,67346.0,67345.0,1.22352161]
[1718146111438,0.00286,67346.0,67345.0,1.22352161]
[1718146112441,0.00286,67346.0,67345.0,1.15684759]
[1718146112990,0.00286,67346.0,67345.0,1.22315533]
[1718146113396,0.00286,67346.0,67345.0,1.15648017]
[1718146114490,0.00286,67346.0,67345.0,1.24537887]
[1718146115802,0.00286,67346.0,67345.0,1.24491904]
[1718146116868,0.00286,67346.0,67345.0,0.93698969]
[1718146117296,0.00286,67346.0,67345.0,1.24490829]
[1718146117494,0.00286,67346.0,67345.0,1.14600959]
[1718146117695,0.00286,67346.0,67345.0,1.23492773]
[1718146117911,0.00286,67346.0,67345.0,1.24492773]
[1718146118120,0.00286,67346.0,67345.0,1.15600959]
[1718146119979,0.00286,67346.0,67345.0,1.69458759]
[1718146120183,0.00286,67346.0,67345.0,1.80571097]
[1718146120401,0.00286,67346.0,67345.0,1.39760959]
[1718146120609,0.00286,67346.0,67345.0,1.89760959]
[1718146121034,0.00286,67346.0,67345.0,2.72501552]
[1718146121246,0.00286,67346.0,67345.0,2.92501552]
[1718146121456,0.00286,67346.0,67345.0,3.35049378]
[1718146122324,0.00286,67346.0,67345.0,2.92016773]
[1718146122527,0.00286,67346.0,67345.0,3.31714573]
[1718146122735,0.00286,67346.0,67345.0,3.45970987]
[1718146124448,0.00286,67346.0,67345.0,3.16273187]
[1718146125572,0.00286,67346.0,67345.0,3.42234328]
[1718146126626,0.00286,67346.0,67345.0,3.42228459]
[1718146128564,0.00286,67346.0,67345.0,3.4551504]
[1718146130170,0.00286,67346.0,67345.0,3.45514964]
[1718146130586,0.00286,67346.0,67345.0,3.49250781]
[1718146131153,0.00286,67346.0,67345.0,3.49249694]
[1718146132325,0.00286,67346.0,67345.0,3.45513877]
[1718146132526,0.00286,67346.0,67345.0,3.14729049]
[1718146132730,0.00286,67346.0,67345.0,3.49250143]
[1718146132969,0.00286,67346.0,67345.0,3.4551436]
[1718146133172,0.00286,67346.0,67345.0,3.45685988]
[1718146133788,0.00286,67346.0,67345.0,3.47441288]
[1718146137448,0.00286,67346.0,67345.0,3.35119472]
[1718146137898,0.00286,67346.0,67345.0,3.47425341]
[1718146139355,0.00286,67346.0,67345.0,3.34625341]
[1718146140146,0.00286,67346.0,67345.0,3.54625341]
[1718146140367,0.00286,67346.0,67345.0,3.63658314]
[1718146140567,0.00286,67346.0,67345.0,3.53956194]
[1718146141153,0.00286,67346.0,67345.0,3.46784516]
[1718146141390,0.00286,67346.0,67345.0,3.33984516]
[1718146141813,0.00286,67346.0,67345.0,3.33984862]
[1718146142255,0.00286,67346.0,67345.0,3.33984839]
[1718146142463,0.00186,67346.0,67345.0,3.33484839]
[1718146142868,0.00286,67346.0,67345.0,3.33984839]
[1718146143280,0.00286,67346.0,67345.0,3.34332021]
[1718146143496,0.00086,67346.0,67345.0,3.33532021]
[1718146143934,0.00286,67346.0,67345.0,3.35348017]
[1718146144126,0.00186,67346.0,67345.0,3.34048017]
[1718146144486,0.00286,67346.0,67345.0,3.35348017]
[1718146145830,0.00286,67346.0,67345.0,3.35366135]
[1718146149544,0.00286,67346.0,67345.0,3.45348969]
[1718146149768,0.00286,67346.0,67345.0,3.55348969]
[1718146150418,0.00286,67346.0,67345.0,3.65348969]
[1718146150646,0.00286,67346.0,67345.0,3.65162801]
[1718146151059,0.00286,67346.0,67345.0,3.68898393]
[1718146153489,0.00286,67346.0,67345.0,3.46881383]
[1718146153708,0.00286,67346.0,67345.0,3.68687744]
[1718146155426,0.00286,67346.0,67345.0,3.88362209]
[1718146157557,0.00286,67346.0,67345.0,3.68687744]
[1718146159065,0.00286,67346.0,67345.0,3.68700544]
[1718146159707,0.00286,67346.0,67345.0,3.78700544]
[1718146160135,0.00286,67346.0,67345.0,4.08398344]
[1718146160804,0.00286,67346.0,67345.0,4.52884868]
[1718146161524,0.00286,67346.0,67345.0,3.7761271]
[1718146161771,0.00286,67346.0,67345.0,4.52956686]
[1718146162137,0.00186,67346.0,67345.0,4.52456686]
[1718146162542,0.00286,67346.0,67345.0,4.53656686]
[1718146163117,0.00186,67346.0,67345.0,4.52356686]
[1718146163564,0.00186,67346.0,67345.0,4.53756686]
[1718146163897,0.00186,67346.0,67345.0,3.7841271]
[1718146164101,0.00186,67346.0,67345.0,4.53794045]
[1718146166532,0.00186,67346.0,67345.0,4.53112862]
[1718146167380,0.00186,67346.0,67345.0,4.95895758]
[1718146168049,0.00186,67346.0,67345.0,4.9587433]
[1718146168240,0.00186,67346.0,67345.0,4.53091434]
[1718146169256,0.00086,67362.0,67361.0,1.60566815]
[1718146169473,0.00086,67362.0,67361.0,2.56650012]
[1718146169734,0.00086,67362.0,67361.0,2.86296154]
[1718146170357,0.00086,67362.0,67361.0,3.15986854]
[1718146170611,0.00286,67362.0,67361.0,3.15856459]
[1718146171078,0.00186,67362.0,67361.0,3.14965811]
[1718146171293,0.00186,67362.0,67361.0,3.17265811]
[1718146171930,0.00186,67362.0,67361.0,2.97265811]
[1718146172614,0.00186,67362.0,67361.0,2.87824368]
[1718146172795,0.00186,67362.0,67361.0,2.83937744]
[1718146173705,0.00186,67362.0,67361.0,2.54247044]
[1718146174114,0.00186,67362.0,67361.0,2.67584423]
[1718146174230,0.00186,67362.0,67361.0,2.54247044]
[1718146174430,0.00186,67362.0,67361.0,2.26774977]
[1718146174637,0.00186,67362.0,67361.0,2.26774869]
[1718146175318,0.00186,67362.0,67361.0,2.17324114]
[1718146175518,0.00186,67362.0,67361.0,2.26788509]
[1718146176418,0.00186,67362.0,67361.0,2.17324114]
[1718146176634,0.00186,67362.0,67361.0,2.26792792]
[1718146181367,0.00186,67362.0,67361.0,2.26792667]
[1718146183498,0.00186,67362.0,67361.0,2.26887267]
[1718146183662,0.00272,67362.0,67361.0,2.26887267]
[1718146187444,0.00272,67362.0,67361.0,2.26887329]
[1718146188310,0.00272,67362.0,67361.0,2.39426809]
[1718146188514,0.00272,67362.0,67361.0,2.08646146]
[1718146188727,0.00272,67362.0,67361.0,2.26887358]
[1718146189046,0.00272,67362.0,67361.0,2.39426838]
[1718146189473,0.00272,67362.0,67361.0,2.80221713]
[1718146190309,0.00272,67362.0,67361.0,2.49441021]
[1718146190521,0.00272,67362.0,67361.0,2.52760878]
[1718146190735,0.00272,67362.0,67361.0,2.80221562]
[1718146191303,0.00272,67362.0,67361.0,2.80212253]
[1718146193250,0.00272,67362.0,67361.0,2.80217289]
[1718146193456,0.00272,67362.0,67361.0,2.49436748]
[1718146193666,0.00272,67362.0,67361.0,2.21987249]
[1718146193859,0.00272,67362.0,67361.0,2.52767794]
[1718146194178,0.00272,67362.0,67361.0,2.66881226]
[1718146195393,0.00272,67362.0,67361.0,2.66886489]
[1718146195786,0.00272,67362.0,67361.0,2.59686489]
[1718146195987,0.00272,67362.0,67361.0,2.66886489]
[1718146196405,0.00272,67362.0,67361.0,2.66885196]
[1718146197684,0.00272,67362.0,67361.0,2.03349503]
[1718146197898,0.24652,67362.0,67361.0,1.63360107]
[1718146199165,0.24652,67362.0,67361.0,1.65660107]
[1718146200752,0.24652,67362.0,67361.0,1.65813128]
[1718146201899,0.24652,67362.0,67361.0,1.73013128]
[1718146203144,0.24652,67362.0,67361.0,1.74013128]
[1718146204456,0.24652,67362.0,67361.0,1.74016234]
[1718146204669,0.24652,67362.0,67361.0,1.74024156]
[1718146207253,0.24652,67362.0,67361.0,1.74023624]
[1718146207714,0.24652,67362.0,67361.0,1.73994794]
[1718146208145,0.24652,67362.0,67361.0,1.73994906]
[1718146211887,0.00272,67362.0,67361.0,2.56715299]
[1718146212096,0.00272,67362.0,67361.0,2.51744599]
[1718146212496,0.00272,67362.0,67361.0,2.80458979]
[1718146214242,0.00272,67362.0,67361.0,2.79458979]
[1718146214990,0.00272,67362.0,67361.0,2.93804112]
[1718146215741,0.00272,67362.0,67361.0,2.94479303]
[1718146216792,0.00272,67362.0,67361.0,2.78069303]
[1718146216997,0.00272,67362.0,67361.0,2.69759303]
[1718146217207,0.00272,67362.0,67361.0,2.78069303]
[1718146217635,0.00086,67362.0,67361.0,2.78069303]
[1718146218068,0.00086,67362.0,67361.0,2.78769303]
[1718146218265,0.00086,67362.0,67361.0,2.79569303]
[1718146218473,0.00086,67362.0,67361.0,2.78869303]
[1718146219026,0.00086,67362.0,67361.0,2.79569303]
[1718146220159,0.00086,67362.0,67361.0,2.79219579]
[1718146222551,0.00086,67362.0,67361.0,2.79220044]
[1718146224409,0.00086,67362.0,67361.0,2.48438764]